bitfinex/quotes_BTCUSD_20241014
["timestamp","ask_amount","ask_price","bid_price","bid_amount"]
[1728945503859,0.00165,66128.0,66127.0,0.156224]
[1728945504106,0.00165,66128.0,66127.0,0.39615247]
[1728945504328,0.00165,66128.0,66127.0,0.40815247]
[1728945504575,0.00165,66128.0,66127.0,0.40615247]
[1728945505276,0.00265,66128.0,66127.0,0.41915247]
[1728945505504,0.00265,66128.0,66127.0,0.40615247]
[1728945505505,0.00165,66128.0,66127.0,0.40615247]
[1728945505726,0.00265,66128.0,66127.0,0.41915247]
[1728945505945,0.00265,66128.0,66127.0,0.42215247]
[1728945506428,0.00265,66128.0,66127.0,0.41915247]
[1728945506659,0.00365,66128.0,66127.0,0.43115247]
[1728945507983,0.00365,66128.0,66127.0,0.43315247]
[1728945508180,0.00365,66128.0,66127.0,0.45636091]
[1728945508675,0.00365,66128.0,66127.0,0.56406091]
[1728945508897,0.00365,66128.0,66127.0,0.56606091]
[1728945509122,0.00365,66128.0,66127.0,0.56406091]
[1728945510307,0.00365,66128.0,66127.0,0.56606091]
[1728945510509,0.00365,66128.0,66127.0,0.56406091]
[1728945510862,0.00365,66128.0,66127.0,0.56606091]
[1728945511329,0.00365,66128.0,66127.0,0.56406091]
[1728945512220,0.00365,66128.0,66127.0,0.56606091]
[1728945512880,0.00365,66128.0,66127.0,0.56406091]
[1728945513581,0.00365,66128.0,66127.0,0.56606091]
[1728945517542,0.00365,66128.0,66127.0,0.66606091]
[1728945518221,0.00365,66128.0,66127.0,1.11973091]
[1728945519474,0.00365,66128.0,66127.0,1.11773091]
[1728945519682,0.00165,66132.0,66131.0,0.173215]
[1728945519893,0.00165,66132.0,66131.0,1.23309967]
[1728945520942,0.00265,66132.0,66131.0,1.24709967]
[1728945522036,0.00365,66132.0,66131.0,1.26009967]
[1728945526893,0.00365,66132.0,66131.0,1.15809967]
[1728945527105,0.00365,66132.0,66131.0,0.97139967]
[1728945528019,0.00365,66132.0,66131.0,0.97639967]
[1728945528239,0.00365,66132.0,66131.0,0.98139967]
[1728945529121,0.00365,66132.0,66131.0,0.97639967]
[1728945530217,0.00365,66132.0,66131.0,0.96639967]
[1728945531772,0.00365,66132.0,66131.0,0.96139967]
[1728945533508,0.00365,66132.0,66131.0,0.96639967]
[1728945533753,0.00365,66132.0,66131.0,0.96139967]
[1728945540415,0.00365,66132.0,66131.0,0.95639967]
[1728945545769,0.00365,66132.0,66131.0,0.95722467]
[1728945546018,0.154862,66132.0,66131.0,0.481475]
[1728945546444,0.16418384,66132.0,66131.0,0.481475]
[1728945546663,0.16418384,66132.0,66131.0,0.63269]
[1728945546664,0.01297184,66132.0,66131.0,0.63269]
[1728945546928,0.01297184,66132.0,66131.0,0.74516354]
[1728945547124,0.01297184,66132.0,66131.0,0.61969]
[1728945547125,0.00265,66132.0,66131.0,0.61969]
[1728945547341,0.00365,66132.0,66131.0,0.63069]
[1728945548303,0.00265,66132.0,66131.0,0.61969]
[1728945548507,0.00265,66132.0,66131.0,0.61869]
[1728945548727,0.00365,66132.0,66131.0,0.62969]
[1728945549203,0.00265,66132.0,66131.0,0.61869]
[1728945549908,0.00165,66132.0,66131.0,0.61969]
[1728945550128,0.00365,66132.0,66131.0,0.63069]
[1728945551894,0.01296279,66132.0,66131.0,0.63069]
[1728945552108,0.00365,66132.0,66131.0,0.63069]
[1728945556957,0.00365,66132.0,66131.0,0.62972508]
[1728945558247,0.08455,66132.0,66131.0,0.62972508]
[1728945558711,0.01296588,66132.0,66131.0,0.62972508]
[1728945558918,0.00365,66132.0,66131.0,0.62972508]
[1728945559535,0.01296896,66132.0,66131.0,0.62972508]
[1728945566378,0.00365,66132.0,66131.0,0.62972508]
[1728945567039,0.01296839,66132.0,66131.0,0.62972508]
[1728945567251,0.00365,66132.0,66131.0,0.62972508]
[1728945567470,0.01296839,66132.0,66131.0,0.62972508]
[1728945567922,0.00365,66132.0,66131.0,0.62972508]
[1728945570598,0.01296789,66132.0,66131.0,0.62972508]
[1728945570809,0.00365,66132.0,66131.0,0.62972508]
[1728945571023,0.01296789,66132.0,66131.0,0.62972508]
[1728945571262,0.00365,66132.0,66131.0,0.62972508]
[1728945571474,0.01296789,66132.0,66131.0,0.62972508]
[1728945571691,0.00365,66132.0,66131.0,0.62972508]
[1728945571913,0.01296789,66132.0,66131.0,0.62972508]
[1728945572121,0.00365,66132.0,66131.0,0.62972508]
[1728945572793,0.01296789,66132.0,66131.0,0.62972508]
[1728945580638,0.01296789,66132.0,66131.0,0.47851008]
[1728945580639,0.16417989,66132.0,66131.0,0.47851008]
[1728945582605,0.01296789,66132.0,66131.0,0.47851008]
[1728945583025,0.16417989,66132.0,66131.0,0.47851008]
[1728945584812,0.35855343,66132.0,66131.0,0.47851008]
[1728945585018,0.24607989,66132.0,66131.0,0.47851008]
[1728945585711,0.24407989,66132.0,66131.0,0.45351008]
[1728945585921,0.24507989,66132.0,66131.0,0.46051008]
[1728945586139,0.24607989,66132.0,66131.0,0.46751008]
[1728945586359,0.24407989,66132.0,66131.0,0.45351008]
[1728945586570,0.24407989,66132.0,66131.0,0.45551008]
[1728945586776,0.24407989,66132.0,66131.0,0.45751008]
[1728945588221,0.24407989,66132.0,66131.0,0.45351008]
[1728945588444,0.01096789,66132.0,66131.0,0.45351008]
[1728945588658,0.01096789,66132.0,66131.0,0.45551008]
[1728945588906,0.16217989,66132.0,66131.0,0.45751008]
[1728945589382,0.23019974,66132.0,66131.0,0.45551008]
[1728945589614,0.23019974,66132.0,66131.0,0.45851008]
[1728945590335,0.23019974,66132.0,66131.0,0.46351008]
[1728945590795,0.22986023,66132.0,66131.0,0.46351008]
[1728945591267,0.32922369,66132.0,66131.0,0.46351008]
[1728945591510,0.16184038,66132.0,66131.0,0.46351008]
[1728945593448,0.22984733,66132.0,66131.0,0.46351008]
[1728945593695,0.20717703,66132.0,66131.0,0.46351008]
[1728945594898,0.16184038,66132.0,66131.0,0.46351008]
[1728945595103,0.20717445,66132.0,66131.0,0.46351008]
[1728945596523,0.20717445,66132.0,66131.0,0.46257508]
[1728945598358,0.22984733,66132.0,66131.0,0.46257508]
[1728945598812,0.16184038,66132.0,66131.0,0.46257508]
[1728945599239,0.20717269,66132.0,66131.0,0.46257508]
[1728945600060,0.16184038,66132.0,66131.0,0.46257508]
[1728945602457,0.20717328,66132.0,66131.0,0.46257508]
[1728945602698,0.20717263,66132.0,66131.0,0.46257508]
[1728945603698,0.8976888,66132.0,66131.0,0.46257508]
[1728945603920,1.02516234,66132.0,66131.0,0.46257508]
[1728945604355,0.9126888,66132.0,66131.0,0.46257508]
[1728945604609,0.9126888,66132.0,66131.0,0.45757508]
[1728945605060,0.9156888,66132.0,66131.0,0.45757508]
[1728945605275,1.0516318,66132.0,66131.0,0.45757508]
[1728945605495,0.93415826,66132.0,66131.0,0.45757508]
[1728945605733,1.05163254,66132.0,66131.0,0.45257508]
[1728945605952,1.06069814,66132.0,66131.0,0.45257508]
[1728945606413,1.0605714,66132.0,66131.0,0.45257508]
[1728945606629,0.92465225,66132.0,66131.0,0.45257508]
[1728945608090,0.91965225,66132.0,66131.0,0.45257508]
[1728945608337,0.92465225,66132.0,66131.0,0.45257508]
[1728945608809,0.15290904,66140.0,66131.0,0.45257508]
[1728945609042,0.66942349,66177.0,66131.0,0.45257508]
[1728945609043,4e-05,66200.0,66131.0,0.79670355]
[1728945609274,2.3312,66272.0,66131.0,0.79670355]
[1728945609275,0.19265542,66218.0,66217.0,0.549018]
[1728945609496,0.0077326,66247.0,66235.0,0.301952]
[1728945609741,0.0077326,66247.0,66217.0,0.302033]
[1728945609742,0.90728322,66236.0,66227.0,0.05646275]
[1728945609979,0.90728322,66236.0,66208.0,0.25]
[1728945609980,1.01975676,66236.0,66221.0,0.01]
[1728945610197,0.10243939,66235.0,66221.0,0.01]
[1728945610432,0.10243939,66235.0,66217.0,0.01]
[1728945610433,0.11247354,66230.0,66217.0,0.01]
[1728945610649,0.11247354,66230.0,66215.0,0.151022]
[1728945610930,0.11247354,66230.0,66212.0,0.302058]
[1728945610931,1.01975676,66228.0,66214.0,0.151023]
[1728945611154,1.01975676,66228.0,66208.0,0.302075]
[1728945611155,0.1,66222.0,66209.0,0.151035]
[1728945611381,0.11247354,66217.0,66203.0,0.01]
[1728945611601,0.11247354,66211.0,66198.0,0.04445804]
[1728945611817,0.1,66210.0,66202.0,0.005]
[1728945612269,0.1,66208.0,66199.0,0.04445804]
[1728945612485,0.1,66208.0,66196.0,0.151065]
[1728945612713,0.1,66208.0,66204.0,0.03617]
[1728945613395,0.001,66211.0,66204.0,0.03617]
[1728945613860,0.001,66210.0,66204.0,0.04917]
[1728945614088,0.001,66210.0,66204.0,0.03517]
[1728945614542,0.001,66208.0,66204.0,0.04417]
[1728945614965,0.001,66210.0,66204.0,0.03517]
[1728945615180,0.001,66210.0,66204.0,0.04517]
[1728945615181,0.002,66210.0,66204.0,0.04517]
[1728945615399,0.002,66210.0,66204.0,0.023]
[1728945615615,0.32656215,66212.0,66200.0,0.01]
[1728945615830,0.000825,66209.0,66200.0,0.01]
[1728945616108,0.001,66208.0,66204.0,0.012]
[1728945616326,0.001,66208.0,66204.0,0.018]
[1728945616537,0.01303998,66207.0,66204.0,0.012]
[1728945616756,0.001,66208.0,66204.0,0.012]
[1728945617638,0.01314207,66207.0,66204.0,0.025]
[1728945617855,0.01314207,66207.0,66204.0,0.013]
[1728945618520,0.002,66205.0,66204.0,0.013]
[1728945618714,0.002,66205.0,66200.0,0.01]
[1728945618974,0.01513268,66205.0,66204.0,0.013]
[1728945619195,0.152042,66207.0,66204.0,0.027]
[1728945619196,0.002,66207.0,66204.0,0.027]
[1728945619432,0.001,66207.0,66204.0,0.013]
[1728945619661,0.152042,66207.0,66204.0,0.013]
[1728945619940,0.001,66205.0,66204.0,0.027]
[1728945620177,0.152043,66207.0,66204.0,0.013]
[1728945620389,0.152043,66207.0,66204.0,0.014]
[1728945620615,0.001,66205.0,66204.0,0.028]
[1728945620838,0.001,66207.0,66204.0,0.028]
[1728945621056,0.001,66207.0,66204.0,0.014]
[1728945621280,0.151045,66205.0,66204.0,0.014]
[1728945621525,0.151045,66205.0,66204.0,0.027]
[1728945621747,0.304084,66207.0,66204.0,0.027]
[1728945621984,0.151045,66205.0,66204.0,0.027]
[1728945622212,0.153045,66205.0,66204.0,0.027]
[1728945622431,0.304084,66207.0,66204.0,0.014]
[1728945622432,0.001,66207.0,66204.0,0.014]
[1728945622649,0.151045,66205.0,66201.0,0.005]
[1728945622888,0.001,66205.0,66204.0,0.014]
[1728945623087,0.152046,66205.0,66204.0,0.014]
[1728945623320,0.152045,66205.0,66204.0,0.014]
[1728945624039,0.002,66205.0,66204.0,0.014]
[1728945624251,0.153045,66205.0,66204.0,0.014]
[1728945624474,0.001,66205.0,66204.0,0.014]
[1728945625800,0.001,66205.0,66204.0,0.028]
[1728945626953,0.100825,66209.0,66191.0,0.11536465]
[1728945627174,0.151055,66201.0,66192.0,0.15352847]
[1728945627387,0.151058,66200.0,66192.0,0.15352847]
[1728945627611,0.302102,66203.0,66192.0,0.15352847]
[1728945627828,0.22656215,66202.0,66192.0,0.15352847]
[1728945628051,0.22656215,66202.0,66184.0,0.005]
[1728945628052,0.22656215,66202.0,66184.0,0.11036465]
[1728945628266,0.15107,66195.0,66185.0,0.15352847]
[1728945628485,0.302129,66197.0,66185.0,0.15352847]
[1728945628694,0.0137722,66194.0,66192.0,0.01]
[1728945629810,0.22656215,66210.0,66193.0,0.15352847]
[1728945630032,0.22656215,66210.0,66199.0,0.151059]
[1728945630033,0.22656215,66200.0,66199.0,0.151059]
[1728945630282,0.22656215,66210.0,66197.0,0.302126]
[1728945630496,0.22656215,66203.0,66199.0,0.302117]
[1728945630710,0.22656215,66210.0,66201.0,0.151054]
[1728945631142,0.116825,66209.0,66197.0,0.45565447]
[1728945631357,0.116825,66209.0,66197.0,0.15352847]
[1728945631648,0.151044,66206.0,66197.0,0.15352847]
[1728945631865,0.001,66203.0,66197.0,0.30459047]
[1728945632529,0.001,66203.0,66199.0,0.151058]
[1728945632751,0.002,66203.0,66199.0,0.162058]
[1728945633002,0.001,66203.0,66199.0,0.162058]
[1728945633227,0.100825,66209.0,66200.0,0.151056]
[1728945633446,0.001,66203.0,66198.0,0.151061]
[1728945633679,0.251861,66209.0,66199.0,0.151059]
[1728945633899,0.100825,66209.0,66199.0,0.151059]
[1728945634118,0.002,66203.0,66199.0,0.323117]
[1728945634351,0.002,66203.0,66200.0,0.151056]
[1728945634584,0.001,66203.0,66202.0,0.005]
[1728945634802,0.001,66203.0,66202.0,0.30958047]
[1728945635063,0.22543393,66210.0,66209.0,0.151036]
[1728945635282,0.22543393,66210.0,66209.0,0.30456447]
[1728945635513,0.24234939,66210.0,66209.0,0.30456447]
[1728945635765,0.22656215,66220.0,66209.0,0.15352847]
[1728945635766,0.1,66219.0,66209.0,0.15352847]
[1728945635963,0.1,66219.0,66212.0,0.151028]
[1728945635964,0.22656215,66213.0,66212.0,0.151028]
[1728945636180,0.01695208,66218.0,66212.0,0.151028]
[1728945636400,0.01692642,66213.0,66210.0,0.52176848]
[1728945636701,0.1,66219.0,66211.0,0.15103]
[1728945636905,0.1,66219.0,66215.0,0.04411817]
[1728945637147,0.1,66219.0,66211.0,0.23926647]
[1728945637148,0.0170982,66218.0,66216.0,0.04411817]
[1728945637362,0.0170982,66218.0,66214.0,0.06617726]
[1728945637363,0.0170982,66218.0,66215.0,0.04411817]
[1728945637598,0.0170982,66218.0,66217.0,0.04411817]
[1728945638282,0.0170982,66218.0,66212.0,0.006]
[1728945638283,0.22656215,66220.0,66216.0,0.04411817]
[1728945638501,0.01415566,66218.0,66217.0,0.04411817]
[1728945638725,0.22656215,66220.0,66217.0,0.04411817]
[1728945638726,0.15101,66221.0,66217.0,0.04411817]
[1728945638951,0.01415566,66218.0,66217.0,0.04411817]
[1728945639218,0.15101,66221.0,66217.0,0.04411817]
[1728945639423,0.15101,66221.0,66218.0,0.0441263]
[1728945639643,0.1,66226.0,66218.0,0.0441263]
[1728945639861,0.1,66226.0,66219.0,0.04413053]
[1728945640072,0.1,66226.0,66216.0,0.06618887]
[1728945640073,0.1,66226.0,66218.0,0.04413053]
[1728945640322,0.151014,66219.0,66218.0,0.04413053]
[1728945640539,0.151014,66219.0,66217.0,0.003]
[1728945640769,0.151014,66219.0,66218.0,0.04413638]
[1728945641214,0.302022,66221.0,66218.0,0.04413638]
[1728945641428,0.151012,66220.0,66218.0,0.04413638]
[1728945641638,0.302006,66224.0,66219.0,0.04413638]
[1728945641639,0.1,66223.0,66219.0,0.04413638]
[1728945641896,0.151011,66220.0,66219.0,0.04413638]
[1728945642583,0.251011,66221.0,66218.0,0.06918887]
[1728945642771,0.251009,66221.0,66220.0,0.04415833]
[1728945643032,0.1,66221.0,66220.0,0.04415833]
[1728945643502,0.1,66221.0,66219.0,0.06618887]
[1728945643722,0.52938015,66227.0,66219.0,0.06618887]
[1728945643723,0.1,66224.0,66219.0,0.06618887]
[1728945643938,0.1,66223.0,66221.0,0.04417289]
[1728945644411,0.000824,66227.0,66223.0,0.302009]
[1728945644660,0.000824,66227.0,66226.0,0.150998]
[1728945645545,0.000824,66227.0,66226.0,0.3791864]
[1728945645763,0.000824,66227.0,66226.0,0.150998]
[1728945646199,0.000824,66227.0,66226.0,0.30452647]
[1728945647297,0.000824,66227.0,66226.0,0.31852647]
[1728945648158,0.000824,66227.0,66226.0,0.33252647]
[1728945648373,0.22656215,66234.0,66227.0,0.30199]
[1728945648598,0.22656215,66234.0,66229.0,0.13262308]
[1728945648818,0.01436363,66233.0,66229.0,0.13262308]
[1728945649034,0.01436363,66233.0,66228.0,0.13262308]
[1728945649253,0.01436363,66233.0,66226.0,0.18152847]
[1728945649254,0.01436363,66233.0,66230.0,0.13262308]
[1728945649494,0.01436363,66233.0,66229.0,0.36122701]
[1728945649716,0.01436363,66233.0,66230.0,0.36121308]
[1728945649937,0.01436363,66233.0,66229.0,0.019]
[1728945650158,0.150988,66230.0,66229.0,0.07537]
[1728945650376,0.150988,66230.0,66229.0,0.09759617]
[1728945650603,0.01191157,66230.0,66229.0,0.009]
[1728945651052,0.01190011,66230.0,66228.0,0.08859617]
[1728945651270,0.22656215,66234.0,66229.0,0.12161452]
[1728945651489,0.22656215,66234.0,66232.0,0.0886927]
[1728945651955,0.150982,66233.0,66232.0,0.0886927]
[1728945652412,0.401952,66236.0,66229.0,0.013]
[1728945652646,0.150979,66235.0,66232.0,0.11104078]
[1728945652859,0.150979,66235.0,66234.0,0.08883361]
[1728945653316,0.250975,66236.0,66232.0,0.009]
[1728945653540,0.250975,66236.0,66232.0,0.02]
[1728945653769,0.250975,66236.0,66235.0,0.11126749]
[1728945654003,0.150972,66238.0,66232.0,0.009]
[1728945654232,0.301934,66240.0,66237.0,0.11125723]
[1728945654233,0.1,66240.0,66237.0,0.11125723]
[1728945654447,0.1,66239.0,66238.0,0.23061182]
[1728945654671,0.1,66239.0,66237.0,0.13262308]
[1728945654881,0.1,66239.0,66235.0,0.13262308]
[1728945655098,0.1,66239.0,66236.0,0.36322468]
[1728945655327,0.1,66239.0,66236.0,0.13262308]
[1728945655558,0.0829,66244.0,66235.0,0.13262308]
[1728945655559,0.150963,66242.0,66235.0,0.13262308]
[1728945655773,0.1829,66244.0,66235.0,0.13262308]
[1728945655774,0.33642847,66244.0,66235.0,0.13262308]
[1728945656032,0.33642847,66244.0,66236.0,0.23060397]
[1728945656268,0.33642847,66244.0,66235.0,0.13662308]
[1728945656516,0.33642847,66244.0,66235.0,0.004]
[1728945656517,0.1,66241.0,66235.0,0.004]
[1728945656738,0.1,66241.0,66235.0,0.005]
[1728945656969,0.1,66241.0,66235.0,0.004]
[1728945657188,0.1,66241.0,66235.0,0.13662308]
[1728945657405,0.1,66241.0,66235.0,0.004]
[1728945657624,0.150963,66242.0,66235.0,0.004]
[1728945657836,0.01206261,66240.0,66233.0,0.13262308]
[1728945658050,0.11206718,66241.0,66233.0,0.13262308]
[1728945658272,0.11206718,66241.0,66225.0,0.301999]
[1728945658273,0.11205804,66239.0,66232.0,0.13262308]
[1728945658465,0.1,66239.0,66232.0,0.13262308]
[1728945658691,0.01205346,66238.0,66230.0,0.13262308]
[1728945658917,0.01205346,66238.0,66235.0,0.003]
[1728945659344,0.01205346,66238.0,66235.0,0.001]
[1728945659564,0.11205346,66238.0,66233.0,0.03]
[1728945659822,0.1,66238.0,66233.0,0.03]
[1728945660006,0.22656215,66241.0,66233.0,0.03]
[1728945660007,0.301935,66240.0,66233.0,0.03]
[1728945660221,0.01204889,66237.0,66235.0,0.006]
[1728945660441,0.150967,66240.0,66233.0,0.03]
[1728945661552,0.150973,66237.0,66235.0,0.005]
[1728945661987,0.150971,66238.0,66233.0,0.036]
[1728945662291,0.250971,66238.0,66237.0,0.11148136]
[1728945662510,0.250971,66238.0,66236.0,0.11148136]
[1728945662650,0.250971,66238.0,66235.0,0.11847836]
[1728945662860,0.1,66238.0,66236.0,0.11147836]
[1728945663069,0.250971,66238.0,66236.0,0.11147836]
[1728945663269,0.150973,66237.0,66236.0,0.0891755]
[1728945664206,0.150973,66237.0,66235.0,0.012]
[1728945664207,0.150973,66237.0,66235.0,0.07287949]
[1728945664412,0.150974,66237.0,66235.0,0.07287949]
[1728945664618,0.150974,66237.0,66235.0,0.07787949]
[1728945664784,0.000824,66239.0,66235.0,0.07787949]
[1728945665005,0.000824,66239.0,66237.0,0.06687949]
[1728945665233,0.000824,66239.0,66237.0,0.04457883]
[1728945665451,0.000824,66239.0,66235.0,0.006]
[1728945665452,0.000824,66239.0,66236.0,0.04457883]
[1728945665995,0.000824,66239.0,66236.0,0.05157883]
[1728945666205,0.000824,66239.0,66230.0,0.04457883]
[1728945666419,0.000824,66239.0,66227.0,0.04457883]
[1728945666617,0.000824,66239.0,66236.0,0.005]
[1728945667500,0.000824,66239.0,66237.0,0.004]
[1728945667717,0.01127879,66238.0,66237.0,0.004]
[1728945668155,0.01127879,66238.0,66236.0,0.005]
[1728945668362,0.01127879,66238.0,66236.0,0.007]
[1728945668797,0.01127879,66238.0,66228.0,0.150993]
[1728945669017,0.01127879,66238.0,66237.0,0.001]
[1728945669227,0.01127879,66238.0,66237.0,0.006]
[1728945669434,0.01127879,66238.0,66237.0,0.005]
[1728945670534,0.01127879,66238.0,66237.0,0.004]
[1728945671803,0.01127879,66238.0,66237.0,0.002]
[1728945672987,0.01127879,66238.0,66227.0,0.22656215]
[1728945673223,0.01127879,66238.0,66237.0,0.151973]
[1728945673442,0.000824,66239.0,66238.0,0.15097]
[1728945673678,0.000824,66239.0,66238.0,0.30449847]
[1728945675262,0.000824,66239.0,66238.0,0.36306994]
[1728945675928,0.000824,66239.0,66238.0,0.31849847]
[1728945676632,0.000824,66239.0,66238.0,0.36306994]
[1728945676873,0.000824,66239.0,66238.0,0.31849847]
[1728945677363,0.000824,66239.0,66238.0,0.37706994]
[1728945678105,0.000824,66239.0,66238.0,0.33249847]
[1728945678568,0.000824,66239.0,66238.0,0.42167806]
[1728945678795,0.000824,66239.0,66238.0,0.33249847]
[1728945679262,0.000864,66239.0,66238.0,0.33249847]
[1728945679509,0.000864,66239.0,66238.0,0.4217027]
[1728945679753,0.000864,66239.0,66238.0,0.31484847]
[1728945679989,0.000864,66239.0,66238.0,0.30084847]
[1728945680232,0.000864,66239.0,66238.0,0.32884847]
[1728945680464,0.000864,66239.0,66238.0,0.42635048]
[1728945680901,0.000864,66239.0,66238.0,0.39003721]
[1728945681113,0.000864,66239.0,66238.0,0.30084847]
[1728945681333,0.000864,66239.0,66238.0,0.42635048]
[1728945681797,0.000864,66239.0,66238.0,0.44035048]
[1728945682023,0.000864,66239.0,66238.0,0.32884847]
[1728945682295,0.000864,66239.0,66238.0,0.014]
[1728945682513,0.151832,66239.0,66238.0,0.028]
[1728945682982,0.16111372,66239.0,66238.0,0.028]
[1728945683201,0.16111372,66239.0,66238.0,0.014]
[1728945683421,0.16111472,66239.0,66236.0,0.001648]
[1728945683640,0.01014572,66239.0,66238.0,0.014]
[1728945683859,0.01014572,66239.0,66238.0,0.028]
[1728945684092,0.16111372,66239.0,66238.0,0.028]
[1728945684309,0.16111372,66239.0,66238.0,0.014]
[1728945684757,0.16111372,66239.0,66236.0,0.004648]
[1728945685182,0.01014572,66239.0,66236.0,0.001648]
[1728945685456,0.01014572,66239.0,66238.0,0.003]
[1728945685673,0.01014572,66239.0,66238.0,0.007]
[1728945686324,0.01014572,66239.0,66238.0,0.003]
[1728945686774,0.01014572,66239.0,66236.0,0.005648]
[1728945687207,0.01014572,66239.0,66236.0,0.008648]
[1728945687655,0.01014572,66239.0,66236.0,0.005648]
[1728945688092,0.01014572,66239.0,66238.0,0.003]
[1728945688544,0.01014572,66239.0,66236.0,0.001648]
[1728945688767,0.01014572,66239.0,66238.0,0.004]
[1728945689692,0.000864,66239.0,66238.0,0.004]
[1728945690887,0.000864,66239.0,66238.0,0.19964964]
[1728945691129,0.000864,66239.0,66238.0,0.004]
[1728945691361,0.000864,66239.0,66238.0,0.07398369]
[1728945691605,0.000864,66239.0,66238.0,0.09631158]
[1728945691857,0.000864,66239.0,66238.0,0.24728158]
[1728945692084,0.000864,66239.0,66238.0,0.31649847]
[1728945692541,0.000864,66239.0,66238.0,0.40181752]
[1728945692780,0.000864,66239.0,66238.0,0.32249847]
[1728945693066,0.000864,66239.0,66238.0,0.33149847]
[1728945693300,0.000864,66239.0,66238.0,0.32249847]
[1728945693543,0.000864,66239.0,66238.0,0.33349847]
[1728945693780,0.000864,66239.0,66238.0,0.33649847]
[1728945694281,0.000864,66239.0,66238.0,0.31849847]
[1728945694716,0.000864,66239.0,66238.0,0.33249847]
[1728945695177,0.000864,66239.0,66238.0,0.30449847]
[1728945695656,0.000864,66239.0,66238.0,0.36315522]
[1728945695923,0.000864,66239.0,66238.0,0.30449847]
[1728945696153,0.000864,66239.0,66238.0,0.31849847]
[1728945696600,0.000864,66239.0,66238.0,0.37715847]
[1728945696863,0.000864,66239.0,66238.0,0.42180968]
[1728945697079,0.21742615,66246.0,66242.0,0.15096]
[1728945697295,0.21742615,66246.0,66243.0,0.04465016]
[1728945697522,0.21742615,66246.0,66242.0,0.15096]
[1728945697523,0.21742615,66246.0,66244.0,0.04465016]
[1728945697750,0.0077326,66247.0,66244.0,0.04465016]
[1728945698238,0.0077326,66247.0,66246.0,0.150952]
[1728945700170,0.0077726,66247.0,66246.0,0.150952]
[1728945700427,0.0077726,66247.0,66246.0,0.31948047]
[1728945700852,0.0077726,66247.0,66246.0,0.54038047]
[1728945700856,0.0077726,66247.0,66246.0,0.53338047]
[1728945701088,0.0077726,66247.0,66246.0,0.66734729]
[1728945701311,0.0077726,66247.0,66246.0,0.67734729]
[1728945701537,0.0077726,66247.0,66246.0,0.66934729]
[1728945701777,0.0077726,66247.0,66246.0,0.52538047]
[1728945701999,0.0077726,66247.0,66246.0,0.55338047]
[1728945702221,0.0077726,66247.0,66246.0,0.53938047]
[1728945702454,0.0077726,66247.0,66246.0,0.54038047]
[1728945702686,0.0077726,66247.0,66246.0,1.02448047]
[1728945702917,0.0077726,66247.0,66246.0,1.02948047]
[1728945703164,0.0077726,66247.0,66246.0,1.10464977]
[1728945703381,0.0077726,66247.0,66246.0,1.07736559]
[1728945703820,0.0077726,66247.0,66246.0,0.37736559]
[1728945704043,0.0077726,66247.0,66246.0,0.37836559]
[1728945704494,0.0077726,66247.0,66246.0,0.37736559]
[1728945704723,0.0077726,66247.0,66246.0,0.31048047]
[1728945704954,0.0077726,66247.0,66246.0,0.32448047]
[1728945705174,0.0077726,66247.0,66246.0,0.41264977]
[1728945705401,0.0087726,66247.0,66246.0,0.42664977]
[1728945705827,0.0087726,66247.0,66246.0,0.33748047]
[1728945706501,0.0087726,66247.0,66246.0,0.42164977]
[1728945706738,0.0087726,66247.0,66246.0,0.33248047]
[1728945707875,0.0087726,66247.0,66246.0,0.42662321]
[1728945708101,0.0087726,66247.0,66246.0,0.33748047]
[1728945708408,0.0087726,66247.0,66246.0,0.33248047]
[1728945708598,0.0087726,66247.0,66246.0,0.33748047]
[1728945709261,0.0087726,66247.0,66246.0,0.42662321]
[1728945710167,0.0087726,66247.0,66246.0,0.42661497]
[1728945710386,0.0095966,66247.0,66246.0,0.33748047]
[1728945710606,0.0095966,66247.0,66246.0,0.34748047]
[1728945711272,0.0095966,66247.0,66246.0,0.47048047]
[1728945712159,0.0095966,66247.0,66246.0,0.92333047]
[1728945713518,0.0095966,66247.0,66246.0,1.62333047]
[1728945715547,0.0078966,66247.0,66246.0,1.62333047]
[1728945717373,0.150887,66275.0,66246.0,1.62333047]
[1728945717374,2.1e-07,66268.0,66267.0,0.290904]
[1728945717618,0.22656215,66274.0,66273.0,0.290891]
[1728945717862,0.22656215,66281.0,66280.0,0.015]
[1728945718100,0.22656215,66281.0,66280.0,0.61931533]
[1728945718329,0.22656215,66281.0,66280.0,0.613505]
[1728945718578,0.000824,66297.0,66282.0,0.15087]
[1728945718811,0.15084,66296.0,66282.0,0.30439847]
[1728945719278,0.000824,66297.0,66282.0,0.30439847]
[1728945719279,0.52824715,66295.0,66282.0,0.30439847]
[1728945719500,0.151667,66294.0,66282.0,0.30439847]
[1728945719729,0.031,66283.0,66282.0,0.31739847]
[1728945719974,0.031,66283.0,66282.0,0.33139847]
[1728945720437,0.031,66283.0,66282.0,0.33639847]
[1728945721310,0.05346295,66283.0,66282.0,0.33639847]
[1728945721538,0.05346295,66283.0,66282.0,0.79400847]
[1728945721762,0.000825,66288.0,66287.0,0.160859]
[1728945722006,0.000825,66288.0,66287.0,0.76696747]
[1728945722931,0.000825,66288.0,66287.0,0.77596747]
[1728945723149,0.000825,66288.0,66287.0,0.76196747]
[1728945723391,0.000825,66288.0,66287.0,0.77596747]
[1728945723882,0.000825,66288.0,66287.0,0.78096747]
[1728945724542,0.000825,66288.0,66287.0,0.79496747]
[1728945724767,0.000825,66288.0,66287.0,0.78096747]
[1728945724986,0.000825,66288.0,66287.0,0.76696747]
[1728945725208,0.000825,66288.0,66287.0,0.8443629]
[1728945725425,0.000825,66288.0,66287.0,1.45596747]
[1728945725645,0.000825,66288.0,66287.0,1.44196747]
[1728945725895,0.000825,66288.0,66287.0,1.45596747]
[1728945726136,0.000825,66288.0,66287.0,1.50025972]
[1728945726354,0.000825,66288.0,66287.0,1.45596747]
[1728945726573,0.000825,66288.0,66287.0,1.44196747]
[1728945727011,0.000825,66288.0,66287.0,0.75096747]
[1728945727478,0.000825,66288.0,66287.0,0.74596747]